bitfinex/quotes_SOLUSD_20241220
["timestamp","ask_amount","ask_price","bid_price","bid_amount"]
[1734677288241,23.776884,189.81,189.63,3.8405]
[1734677289353,24.07183028,189.74,189.67,24.07183028]
[1734677290261,24.07183028,189.75,189.67,24.07183028]
[1734677290669,24.07183028,189.69,189.62,24.07183028]
[1734677290974,24.07183028,189.69,189.61,24.07183028]
[1734677291130,24.07183028,189.7,189.63,24.07183028]
[1734677291761,23.776884,189.81,189.69,24.07183028]
[1734677291945,24.07183028,189.79,189.71,24.07183028]
[1734677292458,24.07183028,189.78,189.71,24.07183028]
[1734677292757,24.07183028,189.78,189.66,20.0]
[1734677292758,24.07183028,189.77,189.7,24.07183028]
[1734677292959,24.07183028,189.78,189.7,24.07183028]
[1734677294560,24.07183028,189.77,189.69,24.07183028]
[1734677295140,24.07183028,189.76,189.69,24.07183028]
[1734677295540,24.07183028,189.76,189.68,24.07183028]
[1734677295968,24.07183028,189.74,189.67,24.07183028]
[1734677296164,24.07183028,189.78,189.7,24.07183028]
[1734677296353,24.07183028,189.79,189.71,24.07183028]
[1734677297869,10.6424,189.82,189.74,24.07183028]
[1734677297870,24.07183028,189.82,189.74,24.07183028]
[1734677298167,24.07183028,189.84,189.76,24.07183028]
[1734677298365,24.07183028,189.88,189.8,24.07183028]
[1734677298669,24.07183028,189.86,189.79,24.07183028]
[1734677299058,24.07183028,189.84,189.76,24.07183028]
[1734677299652,24.07183028,189.85,189.77,24.07183028]
[1734677299855,24.07183028,189.86,189.79,24.07183028]
[1734677300471,24.07183028,189.88,189.81,24.07183028]
[1734677300656,24.07183028,189.91,189.84,24.07183028]
[1734677300861,37.23073028,189.99,189.85,24.07183028]
[1734677300862,24.07183028,189.93,189.85,24.07183028]
[1734677301058,24.07183028,189.93,189.86,24.07183028]
[1734677301255,24.07183028,189.93,189.85,24.07183028]
[1734677301441,24.07183028,189.94,189.86,24.07183028]
[1734677301646,24.07183028,189.96,189.88,24.07183028]
[1734677301871,24.07183028,189.96,189.89,24.07183028]
[1734677302166,24.07183028,190.08,189.95,24.07183028]
[1734677302167,21.066823,190.07,189.95,24.07183028]
[1734677302346,24.07183028,190.07,189.99,24.07183028]
[1734677302941,6.5537,190.08,190.01,24.07183028]
[1734677303146,6.5537,190.08,189.9,48.63848331]
[1734677303147,24.07183028,190.08,190.0,24.07183028]
[1734677303562,24.07183028,190.08,190.01,24.07183028]
[1734677303761,24.07183028,190.07,189.99,24.07183028]
[1734677303972,24.07183028,190.06,189.99,24.07183028]
[1734677305569,24.07183028,190.05,189.97,24.07183028]
[1734677305765,24.07183028,190.04,189.96,24.07183028]
[1734677306791,24.07183028,189.98,189.91,24.07183028]
[1734677306973,24.07183028,189.99,189.91,24.07183028]
[1734677307293,24.07183028,189.96,189.89,24.07183028]
[1734677307645,24.07183028,189.95,189.88,24.07183028]
[1734677307969,24.07183028,189.89,189.82,24.07183028]
[1734677308169,24.07183028,189.86,189.79,24.07183028]
[1734677308545,24.07183028,189.85,189.78,24.07183028]
[1734677309262,24.07183028,189.82,189.74,24.07183028]
[1734677309554,24.07183028,189.83,189.75,24.07183028]
[1734677309761,24.07183028,189.85,189.78,24.07183028]
[1734677310078,36.938284,189.95,189.82,24.07183028]
[1734677310257,24.07183028,189.89,189.82,24.07183028]
[1734677310455,24.07183028,189.88,189.81,24.07183028]
[1734677310648,24.07183028,189.87,189.79,24.07183028]
[1734677310854,24.07183028,189.86,189.78,24.07183028]
[1734677311462,24.07183028,189.86,189.79,24.07183028]
[1734677312046,24.07183028,189.85,189.78,24.07183028]
[1734677312251,24.07183028,189.86,189.78,24.07183028]
[1734677312867,24.07183028,189.88,189.8,24.07183028]
[1734677313072,24.07183028,189.86,189.78,24.07183028]
[1734677313669,24.07183028,189.88,189.8,24.07183028]
[1734677314078,24.07183028,189.9,189.82,24.07183028]
[1734677315257,32.8468,190.01,189.82,24.07183028]
[1734677315258,24.07183028,189.88,189.82,24.07183028]
[1734677315457,24.07183028,189.88,189.8,24.07183028]
[1734677316184,24.07183028,189.84,189.76,24.07183028]
[1734677317090,24.07183028,189.86,189.78,24.07183028]
[1734677317600,24.07183028,189.89,189.81,24.07183028]
[1734677317798,24.07183028,189.9,189.83,24.07183028]
[1734677318074,24.07183028,189.91,189.83,24.07183028]
[1734677320682,24.07183028,189.87,189.79,24.07183028]
[1734677321084,24.07183028,189.89,189.81,24.07183028]
[1734677321795,24.07183028,189.91,189.83,24.07183028]
[1734677321964,24.07183028,189.93,189.85,24.07183028]
[1734677322283,24.07183028,189.93,189.87,24.07183028]
[1734677322482,13.1596,189.98,189.87,24.07183028]
[1734677322483,24.07183028,189.95,189.87,24.07183028]
[1734677322877,6.5321,190.01,189.83,6.6211]
[1734677322878,24.07183028,189.99,189.91,24.07183028]
[1734677323185,24.07183028,189.99,189.93,24.07183028]
[1734677323385,24.07183028,190.01,189.94,24.07183028]
[1734677323563,24.07183028,190.01,189.93,24.07183028]
[1734677323762,24.07183028,189.99,189.92,24.07183028]
[1734677324063,24.07183028,189.99,189.91,24.07183028]
[1734677324585,24.07183028,189.98,189.9,24.07183028]
[1734677324785,24.07183028,189.97,189.9,24.07183028]
[1734677324968,24.07183028,189.97,189.89,24.07183028]
[1734677325174,24.07183028,189.96,189.88,24.07183028]
[1734677325488,24.07183028,189.95,189.83,6.6211]
[1734677325694,24.07183028,189.91,189.84,24.07183028]
[1734677325987,24.07183028,189.91,189.83,24.07183028]
[1734677326192,24.07183028,189.91,189.84,24.07183028]
[1734677326981,24.07183028,189.92,189.84,24.07183028]
[1734677328562,24.07183028,189.94,189.86,24.07183028]
[1734677328769,24.07183028,189.96,189.88,24.07183028]
[1734677328978,24.07183028,189.98,189.9,24.07183028]
[1734677329173,24.07183028,189.99,189.92,24.07183028]
[1734677329775,6.5743,190.01,189.92,24.07183028]
[1734677329984,24.07183028,189.99,189.92,24.07183028]
[1734677330372,24.07183028,190.0,189.92,24.07183028]
[1734677330685,13.1554,190.04,189.94,24.07183028]
[1734677330686,24.07183028,190.02,189.94,24.07183028]
[1734677331092,24.07183028,190.03,189.96,24.07183028]
[1734677331390,24.07183028,190.03,189.95,24.07183028]
[1734677332591,24.07183028,190.01,189.94,24.07183028]
[1734677332892,24.07183028,189.98,189.91,24.07183028]
[1734677333084,24.07183028,189.99,189.92,24.07183028]
[1734677333286,24.07183028,189.97,189.89,24.07183028]
[1734677333486,24.07183028,189.96,189.89,24.07183028]
[1734677333891,24.07183028,189.98,189.91,24.07183028]
[1734677334082,24.07183028,189.97,189.89,24.07183028]
[1734677334280,24.07183028,189.97,189.9,24.07183028]
[1734677334689,24.07183028,189.96,189.89,24.07183028]
[1734677334881,24.07183028,189.95,189.88,24.07183028]
[1734677335083,13.1593,189.98,189.86,24.07183028]
[1734677335084,24.07183028,189.93,189.86,24.07183028]
[1734677335271,24.07183028,189.94,189.87,24.07183028]
[1734677336169,24.07183028,189.92,189.85,24.07183028]
[1734677336378,23.398,189.95,189.8,2.5]
[1734677336571,24.07183028,189.82,189.8,2.5]
[1734677336887,24.07183028,189.81,189.8,2.5]
[1734677338484,48.14366056,189.81,189.8,2.5]
[1734677338691,71.92054456,189.81,189.8,0.0001]
[1734677339493,20.0,189.78,189.66,24.07183028]
[1734677339693,24.07183028,189.74,189.66,24.07183028]
[1734677340584,24.07183028,189.72,189.65,24.07183028]
[1734677340792,24.07183028,189.67,189.6,24.07183028]
[1734677341012,39.08136942,189.65,189.59,0.6468965]
[1734677341319,20.0,189.69,189.59,0.6468965]
[1734677341612,20.0,189.67,189.59,0.6468965]
[1734677341906,20.0,189.63,189.59,0.6468965]
[1734677342076,20.0,189.67,189.59,0.6468965]
[1734677342473,39.08136942,189.65,189.59,0.6468965]
[1734677343098,39.08136942,189.63,189.59,0.6468965]
[1734677343306,39.08136942,189.65,189.59,0.6468965]
[1734677343881,39.08136942,189.63,189.59,0.6468965]
[1734677344408,39.08136942,189.6,189.59,0.6468965]
[1734677345709,62.85825342,189.6,189.59,9.65e-05]
[1734677345904,62.85825342,189.6,189.45,39.08136942]
[1734677345905,20.0,189.56,189.45,39.08136942]
[1734677346083,39.08136942,189.51,189.44,39.08136942]
[1734677346290,39.08136942,189.5,189.42,39.08136942]
[1734677346501,39.08136942,189.48,189.41,39.72826592]
[1734677346827,39.08136942,189.46,189.41,0.6468965]
[1734677347202,39.08136942,189.43,189.41,0.6468965]
[1734677347377,39.08136942,189.42,189.41,0.6468965]
[1734677347783,39.08136942,189.43,189.41,0.6468965]
[1734677348305,39.08136942,189.47,189.41,0.6468965]
[1734677348689,39.08136942,189.45,189.41,0.6468965]
[1734677349096,39.08136942,189.47,189.41,0.6468965]
[1734677350505,39.08136942,189.48,189.41,39.72826592]
[1734677350714,39.08136942,189.46,189.41,0.6468965]
[1734677351018,39.08136942,189.42,189.41,0.6468965]
[1734677354880,62.85825342,189.42,189.41,0.6468965]
[1734677355084,39.08136942,189.42,189.41,0.6468965]
[1734677356697,62.85825342,189.42,189.41,9.65e-05]
[1734677357202,62.85825342,189.42,189.25,39.08136942]
[1734677357411,62.85825342,189.42,189.24,42.91526942]
[1734677357412,39.08136942,189.31,189.24,42.91526942]
[1734677357590,39.08136942,189.32,189.25,39.08136942]
[1734677357795,39.08136942,189.34,189.27,39.08136942]
[1734677358003,39.08136942,189.37,189.29,39.08136942]
[1734677358711,39.08136942,189.36,189.29,39.08136942]
[1734677359088,39.08136942,189.33,189.26,39.08136942]
[1734677359311,39.08136942,189.34,189.27,39.08136942]
[1734677359688,39.08136942,189.36,189.27,39.08136942]
[1734677359889,39.08136942,189.38,189.31,39.08136942]
[1734677360082,39.08136942,189.44,189.36,39.08136942]
[1734677360304,39.08136942,189.45,189.31,20.0]
[1734677360488,39.08136942,189.45,189.38,39.08136942]
[1734677360689,39.08136942,189.43,189.35,39.08136942]
[1734677361406,39.08136942,189.43,189.36,39.08136942]
[1734677361706,39.08136942,189.41,189.34,39.08136942]
[1734677361910,39.08136942,189.41,189.32,39.08136942]
[1734677362116,39.08136942,189.39,189.32,39.08136942]
[1734677362407,39.08136942,189.41,189.34,39.08136942]
[1734677362714,39.08136942,189.42,189.34,39.08136942]
[1734677363707,39.08136942,189.41,189.33,39.08136942]
[1734677364413,17.0318,189.51,189.33,3.9039]
[1734677364629,39.08136942,189.5,189.41,39.08136942]
[1734677364797,39.08136942,189.51,189.43,39.08136942]
[1734677364996,39.08136942,189.52,189.44,39.08136942]
[1734677365228,39.08136942,189.52,189.45,39.08136942]
[1734677365689,39.08136942,189.49,189.42,39.08136942]
[1734677365889,39.08136942,189.5,189.42,39.08136942]
[1734677366106,39.08136942,189.47,189.4,39.08136942]
[1734677366912,39.08136942,189.54,189.36,39.08136942]
[1734677366913,39.08136942,189.43,189.36,39.08136942]
[1734677367132,39.08136942,189.44,189.37,39.08136942]
[1734677367312,39.08136942,189.46,189.38,39.08136942]
[1734677367632,39.08136942,189.48,189.41,39.08136942]
[1734677368005,39.08136942,189.48,189.4,39.08136942]
[1734677368220,39.08136942,189.48,189.41,39.08136942]
[1734677368611,39.08136942,189.51,189.43,39.08136942]
[1734677368826,39.08136942,189.52,189.44,39.08136942]
[1734677369000,6.675,189.58,189.46,39.08136942]
[1734677369001,39.08136942,189.54,189.46,39.08136942]
[1734677369197,39.08136942,189.55,189.47,39.08136942]
[1734677369501,39.08136942,189.57,189.5,39.08136942]
[1734677369702,39.08136942,189.58,189.5,39.08136942]
[1734677371205,39.08136942,189.6,189.52,39.08136942]
[1734677371412,39.08136942,189.62,189.54,39.08136942]
[1734677371608,39.08136942,189.66,189.58,39.08136942]
[1734677371818,39.08136942,189.68,189.6,39.08136942]
[1734677372730,39.08136942,189.7,189.62,39.08136942]
[1734677373219,39.08136942,189.74,189.66,39.08136942]
[1734677373436,39.08136942,189.76,189.68,39.08136942]
[1734677373636,13.172,189.8,189.59,4.64538033]
[1734677373637,39.08136942,189.74,189.66,39.08136942]
[1734677375404,39.08136942,189.74,189.68,39.08136942]
[1734677375610,39.08136942,189.74,189.66,39.08136942]
[1734677376007,39.08136942,189.76,189.68,39.08136942]
[1734677376212,39.08136942,189.74,189.66,39.08136942]
[1734677377005,39.08136942,189.72,189.64,39.08136942]
[1734677377713,39.08136942,189.68,189.6,39.08136942]
[1734677378026,39.08136942,189.67,189.59,39.08136942]
[1734677378242,39.08136942,189.67,189.6,39.08136942]
[1734677378519,13.1735,189.78,189.61,39.08136942]
[1734677378520,39.08136942,189.69,189.61,39.08136942]
[1734677378721,39.08136942,189.7,189.62,39.08136942]
[1734677379307,39.08136942,189.69,189.61,39.08136942]
[1734677379531,39.08136942,189.7,189.62,39.08136942]
[1734677380530,39.08136942,189.66,189.58,39.08136942]
[1734677381238,39.08136942,189.68,189.6,39.08136942]
[1734677382048,39.08136942,189.68,189.62,39.08136942]
[1734677382233,26.3435,189.8,189.62,39.08136942]
[1734677382234,39.08136942,189.7,189.62,39.08136942]
[1734677382652,39.08136942,189.68,189.62,39.08136942]
[1734677382951,39.08136942,189.65,189.57,39.08136942]
[1734677383248,39.08136942,189.64,189.56,45.69096942]
[1734677383629,39.08136942,189.67,189.6,39.08136942]
[1734677384224,39.08136942,189.65,189.57,39.08136942]
[1734677384439,39.08136942,189.62,189.54,39.08136942]
[1734677384726,39.08136942,189.59,189.51,39.08136942]
[1734677385541,39.08136942,189.53,189.46,39.08136942]
[1734677385737,39.08136942,189.51,189.41,6.4362]
[1734677385951,39.08136942,189.5,189.42,39.08136942]
[1734677386158,39.08136942,189.52,189.44,39.08136942]
[1734677386749,39.08136942,189.51,189.44,39.08136942]
[1734677387246,39.08136942,189.53,189.46,39.08136942]
[1734677387443,39.08136942,189.51,189.44,39.08136942]
[1734677387848,39.08136942,189.49,189.42,39.08136942]
[1734677388031,39.08136942,189.48,189.4,39.08136942]
[1734677388233,39.08136942,189.5,189.42,39.08136942]
[1734677389139,39.08136942,189.53,189.44,39.08136942]
[1734677389343,39.08136942,189.53,189.46,39.08136942]
[1734677390250,39.08136942,189.52,189.44,39.08136942]
[1734677390434,39.08136942,189.5,189.43,39.08136942]
[1734677390635,39.08136942,189.52,189.44,39.08136942]
[1734677390830,39.08136942,189.53,189.45,39.08136942]
[1734677391038,39.08136942,189.54,189.46,39.08136942]
[1734677391246,6.2807,189.57,189.43,39.08136942]
[1734677391247,39.08136942,189.51,189.43,39.08136942]
[1734677391438,39.08136942,189.5,189.42,39.08136942]
[1734677391644,39.08136942,189.49,189.41,39.08136942]
[1734677391874,39.08136942,189.48,189.4,39.08136942]
[1734677392554,20.0,189.51,189.4,39.08136942]
[1734677392853,39.08136942,189.49,189.42,39.08136942]
[1734677393154,39.08136942,189.5,189.44,39.08136942]
[1734677393856,39.08136942,189.51,189.43,39.08136942]
[1734677394373,39.08136942,189.49,189.43,39.08136942]
[1734677395253,39.08136942,189.51,189.43,39.08136942]
[1734677395452,39.08136942,189.53,189.45,39.08136942]
[1734677396262,39.08136942,189.51,189.43,39.08136942]
[1734677396967,24.08557998,189.51,189.44,24.08557998]
[1734677397659,24.08557998,189.53,189.44,24.08557998]
[1734677399478,24.08557998,189.51,189.44,24.08557998]
[1734677400268,24.08557998,189.53,189.44,24.08557998]
[1734677400466,24.08557998,189.53,189.46,24.08557998]
[1734677401382,24.08557998,189.55,189.47,24.08557998]
[1734677401673,24.08557998,189.55,189.48,24.08557998]
[1734677402062,24.08557998,189.57,189.49,24.08557998]
[1734677402269,24.08557998,189.57,189.42,0.79148615]
[1734677402270,24.08557998,189.59,189.51,24.08557998]
[1734677402477,24.08557998,189.61,189.53,24.08557998]
[1734677403268,24.08557998,189.61,189.54,24.08557998]
[1734677403571,24.08557998,189.63,189.56,24.08557998]
[1734677403781,6.3994,189.67,189.57,24.08557998]
[1734677403782,24.08557998,189.65,189.57,24.08557998]
[1734677404076,24.08557998,189.66,189.59,24.08557998]
[1734677404261,24.08557998,189.67,189.59,24.08557998]
[1734677404452,24.08557998,189.65,189.58,24.08557998]
[1734677404658,24.08557998,189.64,189.56,24.08557998]
[1734677404863,22.69403497,189.64,189.56,24.08557998]
[1734677405550,24.08557998,189.74,189.63,24.08557998]
[1734677405770,24.08557998,189.74,189.67,24.08557998]
[1734677406372,24.08557998,189.76,189.68,24.08557998]
[1734677406962,6.1695,189.77,189.71,24.08557998]
[1734677407360,24.08557998,189.78,189.71,24.08557998]
[1734677407570,6.1551,189.82,189.64,0.79068568]
[1734677407571,24.08557998,189.81,189.73,24.08557998]
[1734677407878,24.08557998,189.82,189.74,24.08557998]
[1734677408283,24.08557998,189.8,189.73,24.08557998]
[1734677408578,24.08557998,189.77,189.69,24.08557998]
[1734677408884,24.08557998,189.72,189.64,24.08557998]
[1734677409049,24.08557998,189.73,189.65,24.08557998]
[1734677409378,13.1717,189.8,189.68,24.08557998]
[1734677409558,24.08557998,189.76,189.68,24.08557998]
[1734677409949,24.08557998,189.78,189.7,24.08557998]
[1734677410171,24.08557998,189.79,189.71,24.08557998]
[1734677410565,24.08557998,189.78,189.71,24.08557998]
[1734677410754,24.08557998,189.76,189.69,24.08557998]
[1734677410973,24.08557998,189.81,189.68,24.08557998]
[1734677411163,24.08557998,189.73,189.66,24.08557998]
[1734677411368,24.08557998,189.73,189.65,24.08557998]
[1734677411575,24.08557998,189.74,189.67,24.08557998]
[1734677411763,24.08557998,189.77,189.7,24.08557998]
[1734677411968,24.08557998,189.78,189.7,24.08557998]
[1734677412166,24.08557998,189.81,189.74,24.08557998]
[1734677412484,24.08557998,189.82,189.74,24.08557998]
[1734677412660,24.08557998,189.83,189.75,24.08557998]
[1734677412859,24.08557998,189.83,189.76,24.08557998]
[1734677413273,24.08557998,189.83,189.75,24.08557998]
[1734677413772,24.08557998,189.84,189.77,24.08557998]
[1734677413976,24.08557998,189.87,189.8,24.08557998]
[1734677414164,24.73247648,189.88,189.81,24.08557998]
[1734677414487,24.08557998,189.86,189.78,24.08557998]
[1734677415086,24.08557998,189.86,189.79,24.08557998]
[1734677415384,24.08557998,189.87,189.79,24.08557998]
[1734677415593,24.73247648,189.88,189.81,24.08557998]
[1734677415767,0.6468965,189.88,189.81,24.08557998]
[1734677416099,24.73247648,189.88,189.8,24.08557998]
[1734677416589,0.6468965,189.88,189.82,24.08557998]
[1734677417563,0.6468965,189.88,189.84,24.08557998]
[1734677417885,0.6468965,189.88,189.86,24.08557998]
[1734677418084,0.6468965,189.88,189.77,0.78994499]
[1734677418272,0.6468965,189.88,189.84,24.08557998]
[1734677419265,0.6468965,189.88,189.85,24.08557998]
[1734677420098,0.6468965,189.88,189.86,24.08557998]
[1734677421962,0.6468965,189.88,189.87,24.08557998]
[1734677423492,0.6468965,189.88,189.87,48.65234757]
[1734677423788,30.48687998,190.04,189.91,20.0]
[1734677424085,6.4013,190.04,189.98,24.08557998]
[1734677424306,24.73247648,190.06,189.99,24.08557998]
[1734677424463,0.6468965,190.06,189.99,24.08557998]
[1734677424663,0.6468965,190.06,190.0,24.08557998]
[1734677425401,0.6468965,190.06,190.02,24.08557998]
[1734677425569,0.6468965,190.06,189.93,0.78942445]
[1734677425570,0.6468965,190.06,190.03,24.08557998]
[1734677425996,0.6468965,190.06,190.02,24.08557998]
[1734677426668,0.6468965,190.06,190.01,24.08557998]
[1734677426880,0.6468965,190.06,190.02,24.08557998]
[1734677428168,0.6468965,190.06,189.99,24.08557998]
[1734677428370,24.08557998,190.03,189.95,24.08557998]
[1734677428569,24.08557998,190.01,189.94,24.08557998]
[1734677428905,23.776884,190.03,189.86,6.6113]
[1734677429196,24.08557998,189.96,189.89,24.08557998]
[1734677429501,24.08557998,189.97,189.9,24.08557998]
[1734677429674,24.08557998,189.98,189.91,24.08557998]
[1734677430690,24.08557998,189.96,189.89,24.08557998]
[1734677431086,24.08557998,189.98,189.91,24.08557998]
[1734677431306,24.08557998,190.0,189.93,24.08557998]
[1734677431467,13.1562,190.03,189.95,24.08557998]
[1734677431468,24.08557998,190.02,189.95,24.08557998]
[1734677431666,24.08557998,190.01,189.94,24.08557998]
[1734677432473,24.08557998,189.99,189.92,24.08557998]
[1734677432672,24.08557998,189.98,189.91,24.08557998]
[1734677432888,24.08557998,189.99,189.91,24.08557998]
[1734677433591,24.08557998,190.0,189.93,24.08557998]
[1734677433793,24.08557998,190.0,189.92,24.08557998]
[1734677433990,24.08557998,189.98,189.9,24.08557998]
[1734677434178,24.08557998,189.97,189.9,24.08557998]
[1734677434777,24.08557998,189.96,189.89,24.08557998]
[1734677434981,24.08557998,189.96,189.84,7.12560839]
[1734677434982,24.08557998,189.97,189.9,24.08557998]
[1734677435986,24.08557998,189.98,189.91,24.08557998]
[1734677436182,24.08557998,189.92,189.85,24.08557998]
[1734677436485,24.08557998,189.91,189.83,24.08557998]
[1734677436691,24.08557998,189.9,189.83,24.08557998]
[1734677437003,24.08557998,189.92,189.85,24.08557998]
[1734677438098,24.08557998,189.89,189.82,24.08557998]
[1734677438278,24.08557998,189.9,189.83,24.08557998]
[1734677438886,13.1623,189.94,189.86,24.08557998]
[1734677438887,24.08557998,189.93,189.86,24.08557998]
[1734677439590,13.1623,189.94,189.86,24.08557998]
[1734677439591,24.08557998,189.94,189.86,24.08557998]
[1734677439804,24.08557998,189.95,189.88,24.08557998]
[1734677439986,24.08557998,189.97,189.9,24.08557998]
[1734677440186,24.08557998,189.96,189.88,24.08557998]
[1734677440487,24.08557998,189.93,189.86,24.08557998]
[1734677440895,24.08557998,189.94,189.87,24.08557998]
[1734677441398,24.08557998,189.93,189.85,24.08557998]
[1734677442299,24.08557998,189.91,189.84,24.08557998]
[1734677442473,20.0,189.91,189.84,24.08557998]
[1734677442676,24.08557998,189.92,189.85,24.08557998]
[1734677442877,24.08557998,189.91,189.84,24.08557998]
[1734677443078,6.1321,189.94,189.84,24.08557998]
[1734677443394,6.1321,189.94,189.86,24.08557998]
[1734677443395,24.08557998,189.93,189.86,24.08557998]
[1734677443596,24.08557998,189.9,189.83,24.08557998]
[1734677443803,24.08557998,189.89,189.81,24.08557998]
[1734677443995,24.08557998,189.89,189.82,24.08557998]
[1734677444196,24.08557998,189.89,189.8,6.6113]
[1734677444197,24.08557998,189.9,189.83,24.08557998]
[1734677444904,24.08557998,189.92,189.84,24.08557998]
[1734677445106,24.08557998,189.9,189.82,24.08557998]
[1734677445410,24.08557998,189.85,189.78,24.08557998]
[1734677445713,24.08557998,189.86,189.78,24.08557998]
[1734677445918,24.08557998,189.87,189.79,24.08557998]
[1734677446217,24.08557998,189.88,189.8,24.08557998]
[1734677446819,24.08557998,189.88,189.81,24.08557998]
[1734677447012,24.08557998,189.91,189.83,24.08557998]
[1734677447317,24.08557998,189.9,189.83,24.08557998]
[1734677447515,13.1627,189.93,189.86,24.08557998]
[1734677447516,24.08557998,189.93,189.86,24.08557998]
[1734677447733,24.08557998,189.94,189.87,24.08557998]
[1734677448022,24.08557998,189.98,189.91,24.08557998]
[1734677448189,24.08557998,189.99,189.92,24.08557998]
[1734677448391,24.08557998,189.99,189.86,7.47342468]
[1734677448392,24.08557998,190.01,189.94,24.08557998]
[1734677448589,10.7237,190.04,189.93,24.08557998]
[1734677448590,24.08557998,190.0,189.93,24.08557998]
[1734677450815,24.08557998,190.02,189.94,24.08557998]
[1734677451323,24.08557998,190.01,189.94,24.08557998]
[1734677451891,24.08557998,190.0,189.92,24.08557998]
[1734677453023,24.08557998,189.99,189.92,24.08557998]
[1734677453193,24.08557998,189.98,189.91,24.08557998]
[1734677453390,24.08557998,189.98,189.9,24.08557998]
[1734677453896,24.08557998,189.99,189.91,24.08557998]
[1734677454090,24.08557998,190.0,189.93,24.08557998]
[1734677454297,24.08557998,190.02,189.94,24.08557998]
[1734677454489,24.08557998,190.02,189.95,24.08557998]
[1734677455205,24.08557998,190.04,189.97,24.08557998]
[1734677455428,0.6468965,190.06,190.0,24.08557998]
[1734677456121,24.73247648,190.06,189.99,24.08557998]
[1734677456717,0.6468965,190.06,190.0,24.08557998]
[1734677457090,0.6468965,190.06,190.01,24.08557998]
[1734677457820,0.6468965,190.06,190.05,24.08557998]
[1734677458301,24.08557998,190.18,190.05,47.86246398]
[1734677458609,24.08557998,190.19,190.12,24.08557998]
[1734677458809,24.08557998,190.2,190.13,24.08557998]
[1734677459027,24.08557998,190.21,190.13,24.08557998]
[1734677459318,24.08557998,190.14,190.06,24.08557998]
[1734677459502,24.08557998,190.15,190.07,24.08557998]
[1734677459890,24.08557998,190.11,190.04,24.08557998]
[1734677460192,6.4588,190.15,189.98,10.2783]
[1734677460391,13.1482,190.14,189.98,10.2783]
[1734677460620,20.0,190.1,189.98,10.2783]
[1734677460815,20.0,190.1,189.94,0.78937971]
[1734677461226,24.08557998,190.08,190.0,24.08557998]
[1734677461392,24.08557998,190.04,189.97,24.08557998]
[1734677461731,24.08557998,190.04,189.96,24.08557998]
[1734677462219,24.08557998,190.05,189.97,24.08557998]
[1734677462390,24.08557998,190.05,189.98,24.08557998]
[1734677462593,24.08557998,190.06,189.98,24.08557998]
[1734677462790,24.08557998,190.08,190.0,24.08557998]
[1734677463015,44.08557998,190.1,189.95,0.78931983]
[1734677463232,24.08557998,190.12,190.04,24.08557998]
[1734677463407,6.4588,190.15,190.04,24.08557998]
[1734677463597,24.08557998,190.13,190.05,24.08557998]
[1734677463793,24.08557998,190.13,190.06,24.08557998]
[1734677463995,24.08557998,190.16,190.08,24.08557998]
[1734677464298,24.08557998,190.18,190.11,24.08557998]
[1734677464497,24.08557998,190.21,190.13,24.08557998]
[1734677464811,24.08557998,190.23,190.16,24.08557998]
[1734677465493,24.08557998,190.23,190.08,24.87441331]
[1734677465494,30.96107648,190.25,190.17,24.08557998]
[1734677465694,30.96107648,190.25,190.18,24.08557998]
[1734677465695,0.6468965,190.25,190.18,24.08557998]
[1734677465914,0.6468965,190.25,190.2,24.08557998]
[1734677466493,0.6468965,190.25,190.22,24.08557998]
[1734677467005,0.6468965,190.25,190.23,43.13594904]
[1734677467224,0.6468965,190.25,190.24,43.13594904]
[1734677467931,0.6468965,190.25,190.23,43.13594904]
[1734677468433,0.6468965,190.25,190.24,43.13594904]
[1734677468812,0.6468965,190.25,190.2,43.13594904]
[1734677468813,0.6468965,190.25,190.19,23.776884]
[1734677469138,0.6468965,190.25,190.18,43.13594904]
[1734677469337,43.13594904,190.23,190.16,43.13594904]
[1734677469836,43.78284554,190.25,190.18,43.13594904]
[1734677470016,43.13594904,190.24,190.16,43.13594904]
[1734677470715,0.6468965,190.25,190.19,43.13594904]
[1734677471536,43.78284554,190.25,190.18,43.13594904]
[1734677472022,0.58356913,190.25,190.19,43.13594904]
[1734677472642,0.58356913,190.25,190.18,43.13594904]
[1734677472939,0.58356913,190.25,190.22,43.13594904]
[1734677473709,0.58356913,190.25,190.21,43.13594904]
[1734677473908,0.58356913,190.25,190.22,43.13594904]
[1734677474134,0.58356913,190.25,190.21,43.13594904]
[1734677474318,0.58356913,190.25,190.16,20.0]
[1734677474319,43.13594904,190.23,190.16,43.13594904]
[1734677474513,43.13594904,190.23,190.15,43.13594904]
[1734677474833,43.13594904,190.24,190.17,43.13594904]
[1734677475049,43.13594904,190.22,190.15,43.13594904]
[1734677475339,6.4175,190.23,190.13,43.13594904]
[1734677475548,43.13594904,190.19,190.12,43.13594904]
[1734677475743,43.13594904,190.2,190.12,43.13594904]
[1734677476103,43.13594904,190.16,190.09,43.13594904]
[1734677476344,43.13594904,190.12,190.04,43.13594904]
[1734677476641,43.13594904,190.12,190.05,43.13594904]
[1734677476809,43.13594904,190.14,190.02,6.5987]
[1734677477014,43.13594904,190.15,190.08,43.13594904]
[1734677477314,43.13594904,190.14,190.07,43.13594904]
[1734677477533,43.13594904,190.15,190.08,43.13594904]